bitfinex-derivatives/quotes_ETHF0:USTF0_20250130
["timestamp","ask_amount","ask_price","bid_price","bid_amount"]
[1738262080134,0.61227,3266.7,3266.5,0.61228]
[1738262080432,3.2078,3266.8,3266.7,0.61226]
[1738262080838,0.61224,3266.8,3266.7,0.61226]
[1738262081737,0.00459327,3267.0,3266.9,0.61222]
[1738262081928,0.61209,3267.6,3267.4,0.61212]
[1738262082129,0.61211,3267.6,3267.3,0.61214]
[1738262082328,0.61211,3267.6,3267.4,0.61212]
[1738262082831,0.61211,3267.6,3267.5,0.61211]
[1738262083035,0.00459327,3267.8,3267.5,0.61211]
[1738262083234,0.61209,3267.6,3267.5,0.61211]
[1738262083433,0.61208,3267.7,3267.5,0.61211]
[1738262083636,0.61209,3267.6,3267.5,0.61211]
[1738262086038,0.61208,3267.7,3267.6,0.61208]
[1738262086329,0.61665327,3267.8,3267.7,0.61207]
[1738262086637,0.00459327,3267.8,3267.7,0.61207]
[1738262087323,0.61664327,3267.8,3267.7,0.61207]
[1738262087527,0.00459327,3267.8,3267.3,3.16817382]
[1738262087727,0.00459327,3267.8,3267.2,3.21239327]
[1738262087933,0.61211,3267.6,3267.5,0.6121]
[1738262088135,0.61208,3267.7,3267.6,0.61207]
[1738262088830,0.00459327,3267.8,3267.2,3.21239327]
[1738262089033,0.61665327,3267.8,3267.7,0.61207]
[1738262090539,0.00459327,3267.8,3267.7,0.61207]
[1738262092132,0.00459327,3267.8,3267.7,6.98804382]
[1738262092331,0.5284,3268.5,3267.8,1.5301]
[1738262092639,0.61196,3268.3,3268.2,0.61196]
[1738262092840,0.61202,3268.0,3267.9,1.62631]
[1738262093538,0.61202,3268.0,3267.9,1.0143]
[1738262093738,0.61202,3268.0,3267.9,1.62633]
[1738262094838,0.61202,3268.0,3267.9,0.61203]
[1738262095034,0.61212,3267.5,3267.4,0.61211]
[1738262095229,0.6121,3267.6,3267.5,0.6121]
[1738262095432,0.61212,3267.5,3267.4,0.61211]
[1738262095635,0.61211,3267.6,3267.5,0.6121]
[1738262096241,0.61211,3267.6,3267.2,3.21239327]
[1738262096242,0.61208,3267.7,3267.6,0.61208]
[1738262096542,0.6121,3267.6,3267.5,0.6121]
[1738262096837,1.0136,3267.9,3267.2,3.21239327]
[1738262097038,0.61211,3267.6,3267.4,0.61211]
[1738262097242,1.0136,3267.9,3267.4,0.61211]
[1738262097539,1.0136,3267.9,3267.2,0.00459327]
[1738262097742,0.61211,3267.5,3267.4,0.61212]
[1738262099046,4.73785,3268.0,3267.9,0.61203]
[1738262099047,3.2078,3268.0,3267.9,0.61203]
[1738262099344,0.00196669,3268.3,3267.7,3.16817382]
[1738262099546,0.61393669,3268.3,3268.1,0.61198]
[1738262099733,0.00196669,3268.3,3267.8,1.5333]
[1738262099937,0.61198,3268.2,3268.1,0.61198]
[1738262100439,0.00196669,3268.3,3267.8,1.5333]
[1738262100846,0.00196669,3268.3,3268.2,0.61198]
[1738262101543,0.61198,3268.2,3268.1,0.61198]
[1738262101741,0.61199,3268.2,3267.8,1.5333]
[1738262102440,0.61203,3267.9,3267.8,0.4965]
[1738262102748,0.61202,3268.0,3267.8,0.61204]
[1738262102943,1.016,3268.1,3267.8,0.61204]
[1738262103246,1.016,3268.1,3267.4,2.53201]
[1738262103451,0.61205,3267.9,3267.4,2.53201]
[1738262103639,3.2078,3268.0,3267.4,1.0017]
[1738262103839,0.61205,3267.9,3267.4,1.0017]
[1738262104047,0.61205,3267.9,3267.8,0.61205]
[1738262104338,0.6121,3267.6,3267.5,0.6121]
[1738262104538,3.2078,3268.0,3267.4,1.0017]
[1738262104740,3.2078,3268.0,3267.6,0.61208]
[1738262104741,0.61208,3267.7,3267.6,0.61208]
[1738262104936,3.2078,3268.0,3267.4,1.0017]
[1738262105145,0.61206,3267.8,3267.7,0.61207]
[1738262105544,3.2078,3268.0,3267.4,1.0017]
[1738262105947,0.61206,3267.8,3267.7,0.61207]
[1738262106640,0.61208,3267.7,3267.6,0.61208]
[1738262106846,0.61208,3267.7,3267.6,0.36384932]
[1738262107046,3.2078,3268.0,3267.2,3.21239327]
[1738262107253,0.6121,3267.6,3267.5,0.6121]
[1738262107646,3.2078,3268.0,3267.3,2.61308349]
[1738262107850,3.81983,3268.0,3267.9,0.61203]
[1738262108455,0.61206,3267.9,3267.8,0.61204]
[1738262108949,3.2078,3268.0,3267.4,1.5303]
[1738262108950,0.61207,3267.8,3267.7,0.61206]
[1738262109356,3.2078,3268.0,3267.4,1.53029]
[1738262109555,3.2078,3268.0,3267.9,0.61203]
[1738262111452,0.61205,3267.8,3267.7,1.62546]
[1738262111643,3.2078,3268.0,3267.7,1.0134]
[1738262111843,0.61204,3267.9,3267.8,0.61205]
[1738262112655,3.2078,3268.0,3267.9,0.61203]
[1738262113352,0.00196669,3268.3,3268.2,0.61198]
[1738262114152,0.61199,3268.2,3268.1,0.61199]
[1738262114354,0.61393669,3268.3,3268.2,0.61198]
[1738262114749,0.61393669,3268.3,3267.9,1.13168849]
[1738262114950,0.61393669,3268.3,3268.2,0.61198]
[1738262116754,0.00196669,3268.3,3268.2,0.61198]
[1738262116949,0.61392669,3268.3,3268.2,0.61198]
[1738262117560,0.61199,3268.2,3268.1,0.61198]
[1738262117853,0.00196669,3268.3,3268.2,0.61198]
[1738262118050,0.00196669,3268.3,3268.2,3.22506349]
[1738262119154,0.00196669,3268.3,3267.8,2.02201]
[1738262119155,0.00196669,3268.3,3267.8,0.4919]
[1738262119555,0.61198,3268.2,3268.1,0.61198]
[1738262119846,0.49866669,3268.3,3268.2,0.61198]
[1738262120050,0.00196669,3268.3,3268.2,0.61198]
[1738262120850,0.00196669,3268.3,3268.1,0.61199]
[1738262120851,0.61199,3268.2,3268.1,0.61199]
[1738262121056,1.10869,3268.2,3268.1,0.61199]
[1738262121453,0.61203,3267.9,3267.8,0.4919]
[1738262121756,0.61205,3267.8,3267.7,1.62546]
[1738262122158,0.61205,3267.8,3267.7,1.13176]
[1738262122459,0.6121,3267.6,3267.5,0.6121]
[1738262122864,3.2078,3268.0,3267.3,0.4882]
[1738262123162,0.61207,3267.8,3267.7,0.61207]
[1738262123357,0.61207,3267.7,3267.6,0.61208]
[1738262124055,3.2078,3268.0,3267.3,0.4882]
[1738262124363,0.6121,3267.6,3267.5,0.61209]
[1738262124563,0.61208,3267.7,3267.6,0.61209]
[1738262125357,3.10978349,3268.2,3267.9,0.61203]
[1738262125358,1.10868,3268.2,3267.9,0.61203]
[1738262125564,0.00196669,3268.3,3267.9,2.61308349]
[1738262125755,0.61198,3268.2,3268.1,0.61199]
[1738262125954,0.61393669,3268.3,3268.2,0.61198]
[1738262126464,0.00196669,3268.3,3268.2,0.61198]
[1738262126655,0.61392669,3268.3,3268.2,0.61198]
[1738262127757,0.00196669,3268.3,3267.7,1.53018]
[1738262127961,0.61204,3267.9,3267.8,0.61203]
[1738262128163,0.00196669,3268.3,3267.6,4.18458349]
[1738262128365,0.61203,3268.0,3267.9,0.61201]
[1738262129062,0.00196669,3268.3,3267.6,4.18458349]
[1738262129362,0.00196669,3268.3,3267.7,0.61206]
[1738262129363,0.61207,3267.8,3267.7,0.61206]
[1738262129963,0.61207,3267.7,3267.6,1.5715]
[1738262130164,0.61207,3267.7,3267.6,0.5287]
[1738262130563,0.4898,3267.9,3267.6,0.5287]
[1738262130764,0.61206,3267.8,3267.7,0.61206]
[1738262131268,0.00196669,3268.3,3267.6,3.14178349]
[1738262131469,0.61201,3268.1,3268.0,0.61201]
[1738262132870,0.49176669,3268.3,3267.6,3.14178349]
[1738262133171,0.61204,3268.0,3267.9,0.61203]
[1738262133978,0.49176669,3268.3,3267.6,3.67108349]
[1738262134179,0.61204,3267.9,3267.8,0.61203]
[1738262135979,0.49176669,3268.3,3267.8,0.61203]
[1738262136180,0.61204,3267.9,3267.8,0.61203]
[1738262137187,0.61203,3268.0,3267.9,0.61203]
[1738262137680,0.61204,3267.9,3267.8,0.61204]
[1738262141093,2.02168669,3268.3,3267.6,3.67108349]
[1738262141094,0.49176669,3268.3,3267.6,3.67108349]
[1738262141287,0.61202,3268.0,3267.9,0.61201]
[1738262142691,0.49176669,3268.3,3267.6,3.67108349]
[1738262142891,0.61198,3268.2,3268.1,0.61198]
[1738262143191,0.49176669,3268.3,3267.9,2.61308349]
[1738262143489,0.00196669,3268.3,3268.2,3.22506349]
[1738262147294,0.00196669,3268.3,3268.2,2.61308349]
[1738262147487,0.50286669,3268.3,3268.0,3.693]
[1738262147681,0.50286669,3268.3,3268.2,0.61198]
[1738262147885,0.00196669,3268.3,3268.2,0.61198]
[1738262150394,0.00196669,3268.3,3268.0,1.0972]
[1738262150598,3.2078,3268.1,3267.6,1.058]
[1738262150892,0.61213,3267.4,3267.3,1.14354]
[1738262151095,0.61213,3267.4,3267.3,0.5314]
[1738262151297,0.61214,3267.3,3267.2,0.00459327]
[1738262151498,4.31414,3267.3,3267.2,0.00459327]
[1738262152099,4.31414,3267.3,3267.2,0.00303719]
[1738262153695,5.26696,3267.8,3267.2,0.00303719]
[1738262153897,0.61212,3267.5,3267.3,0.61213]
[1738262154201,0.51,3267.6,3267.1,1.0093]
[1738262154500,0.61216,3267.2,3267.1,0.51]
[1738262154801,0.61224,3266.9,3266.7,2.61308349]
[1738262155000,0.61224,3266.9,3266.8,0.61224]
[1738262155593,0.4933,3267.2,3266.9,0.61222]
[1738262155797,0.6122,3267.0,3266.9,0.61222]
[1738262156098,0.4933,3267.2,3266.7,3.22533349]
[1738262156295,0.61223,3266.9,3266.8,0.61224]
[1738262156493,0.4933,3267.2,3266.7,3.22533349]
[1738262156698,0.61223,3266.9,3266.7,3.22533349]
[1738262157091,0.61223,3266.9,3266.7,2.61308349]
[1738262157292,0.61223,3266.9,3266.8,0.61224]
[1738262157500,0.4933,3267.2,3266.7,2.61308349]
[1738262158098,0.61222,3266.9,3266.7,3.22532349]
[1738262158600,0.61222,3266.9,3266.7,2.61308349]
[1738262158801,0.61222,3266.9,3266.8,0.61224]
[1738262159196,0.61218,3267.1,3266.7,3.22533349]
[1738262159400,0.61223,3266.9,3266.7,3.22533349]
[1738262159799,0.61224,3266.8,3266.7,3.22534349]
[1738262160201,0.4933,3267.2,3266.7,2.61308349]
[1738262160402,0.61222,3266.9,3266.8,0.61223]
[1738262160800,0.4933,3267.2,3266.6,0.51]
[1738262161098,0.61228,3266.6,3266.5,0.00459327]
[1738262161308,3.2078,3266.6,3266.1,2.61308349]
[1738262161601,3.2078,3266.6,3266.4,0.6123]
[1738262161602,0.61228,3266.6,3266.4,0.6123]
[1738262161789,0.4948,3266.8,3266.4,0.6123]
[1738262162195,0.61228,3266.6,3266.4,0.6123]
[1738262162399,0.4948,3266.8,3266.1,2.61308349]
[1738262162601,0.61226,3266.7,3266.2,0.61694327]
[1738262162800,0.61233,3266.4,3266.2,0.00459327]
[1738262163003,0.6123,3266.5,3266.3,0.61233]
[1738262163598,0.61232,3266.4,3266.2,0.61693327]
[1738262163998,0.49939327,3266.8,3266.2,0.00459327]
[1738262164209,0.61229,3266.6,3266.4,0.61231]
[1738262164505,0.49939327,3266.8,3266.4,0.61231]
[1738262164700,0.49939327,3266.8,3266.2,0.00459327]
[1738262164905,0.61233,3266.3,3266.2,0.00459327]
[1738262166001,0.61233,3266.3,3266.2,0.61693327]
[1738262166410,0.5249,3266.5,3266.2,0.00459327]
[1738262166799,0.61233,3266.4,3266.3,0.61233]
[1738262167102,0.61233,3266.3,3266.2,0.61693327]
[1738262167502,0.5249,3266.5,3266.2,0.00459327]
[1738262167700,0.61233,3266.4,3266.3,0.61232]
[1738262168511,3.2078,3266.6,3266.2,0.00459327]
[1738262168807,3.8201,3266.6,3266.5,0.61229]
[1738262169009,0.6123,3266.6,3266.5,0.61229]
[1738262169211,0.61232,3266.5,3266.4,0.6123]
[1738262169604,0.61232,3266.5,3266.4,0.1123]
[1738262169803,0.61232,3266.5,3266.4,0.6123]
[1738262171012,0.61229,3266.6,3266.5,0.61228]
[1738262171210,0.49939327,3266.8,3266.4,3.12128349]
[1738262171505,1.11164327,3266.8,3266.7,0.61226]
[1738262172114,0.00459327,3266.8,3266.7,3.22534349]
[1738262172503,0.00459327,3266.8,3266.7,6.43314349]
[1738262177923,0.61213,3267.4,3266.7,6.43314349]
[1738262177924,0.5246,3267.6,3266.7,6.43314349]
[1738262178209,0.5246,3267.6,3267.2,2.61308349]
[1738262178415,0.61214,3267.4,3267.3,1.11224]
[1738262180415,0.61212,3267.5,3267.4,0.61212]
[1738262180814,0.61213,3267.4,3267.3,0.5001]
[1738262181110,1.53029,3267.5,3266.9,2.61308349]
[1738262181316,0.6122,3267.0,3266.9,3.22530349]
[1738262182212,3.723,3267.3,3266.9,2.61308349]
[1738262182421,0.6122,3267.1,3267.0,0.6122]
[1738262183215,0.61217,3267.2,3267.1,0.61217]
[1738262183414,0.5246,3267.6,3266.9,2.61308349]
[1738262183619,0.61212,3267.5,3267.4,0.61211]
[1738262183814,0.5246,3267.6,3267.3,2.61308349]
[1738262184019,0.61217,3267.2,3267.1,0.61216]
[1738262184215,2.05485,3267.6,3267.0,2.61308349]
[1738262184414,0.5246,3267.6,3267.3,0.61214]
[1738262184614,0.61218,3267.1,3267.0,3.22527349]
[1738262184816,0.5246,3267.6,3267.0,2.61308349]
[1738262185019,0.61213,3267.4,3267.1,0.61218]
[1738262185221,0.5246,3267.6,3267.0,2.61308349]
[1738262185418,0.5246,3267.6,3267.3,0.61213]
[1738262185419,0.61213,3267.4,3267.3,0.61213]
[1738262187429,0.5246,3267.6,3267.0,4.14357349]
[1738262187726,3.21239327,3267.7,3267.3,2.61308349]
[1738262187925,3.21239327,3267.7,3267.6,0.61209]
[1738262188120,3.82446327,3267.7,3267.6,0.61209]
[1738262188317,3.21239327,3267.7,3267.6,3.22517349]
[1738262189626,0.00459327,3267.7,3267.6,3.22517349]
[1738262190636,3.2078,3268.6,3268.5,0.61192]
[1738262190637,1.0533,3268.6,3268.5,0.61192]
[1738262191037,1.6652,3268.6,3268.4,2.61308349]
[1738262191236,0.61192,3268.5,3268.4,3.22501349]
[1738262191434,1.0533,3268.6,3268.4,2.61308349]
[1738262191740,1.0533,3268.6,3268.5,0.61192]
[1738262192431,0.00196669,3268.8,3268.4,2.61308349]
[1738262192842,0.61383669,3268.8,3268.7,0.61188]
[1738262193438,0.00196669,3268.8,3268.7,3.22496349]
[1738262197137,0.49376669,3268.8,3268.7,3.22496349]
[1738262197637,0.00196669,3268.8,3268.7,3.22496349]
[1738262198147,0.4918,3269.6,3268.7,2.61308349]
[1738262198341,0.4918,3269.6,3269.4,0.61175]
[1738262198342,1.10352,3269.6,3269.4,0.61175]
[1738262199238,0.4918,3269.6,3269.2,2.61308349]
[1738262199540,0.4918,3269.6,3269.5,3.22481349]
[1738262199735,3.8194,3270.2,3270.0,0.61163]
[1738262199935,0.4996,3270.1,3270.0,0.61163]
[1738262200138,0.4996,3270.1,3269.9,2.61308349]
[1738262200339,1.11123,3270.1,3269.9,3.22473349]
[1738262200542,0.4996,3270.1,3270.0,0.61164]
[1738262200944,1.11122,3270.1,3269.9,3.22472349]
[1738262201141,0.4996,3270.1,3269.9,2.61308349]
[1738262201445,0.4996,3270.1,3269.8,0.00459327]
[1738262201948,0.61166,3269.9,3269.8,0.00459327]
[1738262204049,0.61181,3269.1,3268.7,0.61187]
[1738262204350,0.61187,3268.8,3268.6,0.61189]
[1738262204542,0.61186,3268.9,3268.4,2.61308349]
[1738262204743,0.61186,3268.9,3268.2,3.2078]
[1738262204744,0.4969,3269.0,3268.7,2.61308349]
[1738262205050,0.61176,3269.4,3269.2,0.61178]
[1738262205248,0.00459327,3269.2,3269.1,0.61179]
[1738262205447,0.00459327,3269.2,3269.1,3.81959]
[1738262210150,0.61638327,3269.2,3269.1,3.2078]
[1738262210346,0.00459327,3269.2,3269.1,3.81961]
[1738262210540,0.00459327,3269.2,3269.1,5.34331]
[1738262212155,3.2078,3270.2,3269.1,4.7315]
[1738262212450,0.61157,3270.1,3269.9,3.22468349]
[1738262212655,3.6969,3270.2,3269.6,2.61308349]
[1738262212853,1.10849,3270.0,3269.8,0.61162]
[1738262213154,1.10849,3270.0,3269.9,6.43248349]
[1738262213155,0.4969,3270.0,3269.9,6.43248349]
[1738262213352,0.4891,3270.2,3269.9,6.43248349]
[1738262213353,0.4891,3270.2,3269.9,5.82088349]
[1738262213558,0.4933,3270.4,3270.3,0.61152]
[1738262214049,0.4933,3270.4,3270.3,3.81932]
[1738262214250,0.4891,3270.9,3270.3,3.7367]
[1738262214447,1.10474,3270.8,3270.7,2.61308349]
[1738262214646,1.10474,3270.8,3270.6,0.61146]
[1738262215449,1.10474,3270.8,3270.3,6.89730926]
[1738262215450,0.4933,3270.8,3270.3,6.89730926]
[1738262215645,0.4933,3270.8,3270.7,0.61145]
[1738262216452,0.4933,3270.8,3270.7,3.81925]
[1738262216651,0.61138,3271.1,3270.9,0.61141]
[1738262216848,3.2078,3271.2,3270.7,3.2078]
[1738262217054,1.013,3271.4,3270.9,3.16060926]
[1738262217255,1.013,3271.4,3271.0,0.4873]
[1738262217460,1.013,3271.4,3270.8,1.02]
[1738262217461,1.013,3271.4,3270.8,0.5123]
[1738262217657,0.61139,3271.0,3270.8,0.61142]
[1738262217857,0.61142,3270.9,3270.7,3.81924]
[1738262218053,0.61142,3270.9,3270.7,3.2078]
[1738262218259,0.61142,3270.9,3270.7,3.81924]
[1738262218458,0.61142,3270.9,3270.7,3.2078]
[1738262218761,1.13253,3270.8,3270.7,3.2078]
[1738262219362,0.61151,3270.4,3270.3,3.2078]
[1738262220269,0.61151,3270.4,3270.0,0.00459327]
[1738262220270,0.61156,3270.1,3270.0,0.00459327]
[1738262220568,3.77216926,3270.1,3270.0,0.00459327]
[1738262222368,3.77216926,3270.1,3270.0,0.00304034]
[1738262225953,0.61156,3270.1,3270.0,0.00304034]
[1738262230776,0.5267,3270.3,3270.2,0.61154]
[1738262231079,0.00152882,3270.4,3270.3,0.61152]
[1738262231377,0.5124,3270.7,3270.2,3.2078]
[1738262231672,0.5148,3270.5,3270.2,3.2078]
[1738262231969,4.73624,3271.2,3270.3,0.5315]
[1738262232178,0.61143,3270.9,3270.6,0.61145]
[1738262232475,0.61144,3270.8,3270.6,0.61145]
[1738262232678,0.61142,3270.9,3270.7,0.61144]
[1738262234274,1.0323,3271.1,3270.6,3.2078]
[1738262234275,0.5175,3271.1,3270.6,3.2078]
[1738262234575,0.61122,3271.9,3271.4,0.61131]
[1738262234775,0.61122,3271.9,3271.0,6.36840926]
[1738262234776,0.61126,3271.8,3271.3,3.16060926]
[1738262234978,0.61126,3271.7,3271.5,0.61129]
[1738262235277,0.61124,3271.9,3271.4,0.5063]
[1738262235471,0.61124,3271.9,3271.7,0.61126]
[1738262235874,0.61125,3271.8,3271.4,0.5063]
[1738262236082,0.61128,3271.7,3271.5,0.61129]
[1738262236273,0.61129,3271.6,3271.4,1.11761]
[1738262236472,0.513,3271.6,3271.4,1.11761]
[1738262236679,0.513,3271.6,3271.5,0.6113]
[1738262236879,0.61126,3271.8,3271.5,3.8191]
[1738262237079,0.61123,3271.9,3271.6,0.61128]
[1738262237282,0.61122,3272.0,3271.7,0.61125]
[1738262237483,0.513,3272.1,3271.5,3.2078]
[1738262237682,0.61122,3272.0,3271.7,0.61125]
[1738262238279,0.513,3272.1,3271.7,0.61125]
[1738262238484,0.61123,3271.9,3271.7,0.61125]
[1738262238883,0.513,3272.1,3271.5,3.2078]
[1738262239087,0.61128,3271.6,3271.5,3.2078]
[1738262240885,0.61126,3271.8,3271.6,0.61128]
[1738262241087,0.61126,3271.8,3271.7,0.61126]
[1738262241287,0.61124,3271.8,3271.6,0.5106]
[1738262241480,0.61124,3271.8,3271.6,1.12187]
[1738262241680,0.61126,3271.7,3271.6,0.5106]
[1738262245483,3.2078,3272.0,3271.5,3.2078]
[1738262245683,3.2078,3272.0,3271.0,0.4858]
[1738262245684,0.61137,3271.1,3271.0,3.2078]
[1738262245887,4.73603,3271.6,3271.0,3.2078]
[1738262246186,0.61137,3271.1,3271.0,3.81919]
[1738262246683,4.73603,3271.6,3271.1,0.61137]
[1738262246875,4.73603,3271.6,3271.0,3.2078]
[1738262246876,4.73603,3271.6,3271.0,3.81918]
[1738262247081,0.61137,3271.1,3271.0,3.2078]
[1738262247291,0.61137,3271.1,3271.0,3.81919]
[1738262248390,3.2078,3271.6,3271.0,3.2078]
[1738262248589,0.61136,3271.2,3271.0,3.81918]
[1738262248894,3.2078,3271.6,3271.1,0.61136]
[1738262248895,0.61135,3271.3,3271.1,0.61136]
[1738262249087,0.61128,3271.6,3271.1,0.61136]
[1738262249287,0.61136,3271.2,3271.1,0.61136]
[1738262249485,0.61136,3271.2,3271.0,3.81919]
[1738262249795,0.4931,3271.6,3271.0,3.2078]
[1738262249994,0.61137,3271.1,3271.0,3.81918]
[1738262250294,0.61137,3271.1,3271.0,3.2078]
[1738262251587,0.5098,3271.4,3271.0,3.2078]
[1738262251793,0.61134,3271.3,3271.2,0.61135]
[1738262251984,0.61136,3271.2,3271.1,2.60760041]
[1738262252190,0.6113,3271.5,3271.1,3.21897041]
[1738262252394,0.61135,3271.3,3271.1,3.21897041]
[1738262252595,0.61133,3271.4,3271.3,0.61133]
[1738262253093,0.5098,3271.6,3271.1,2.60760041]
[1738262253289,0.61134,3271.3,3271.1,3.21896041]
[1738262253491,0.61137,3271.1,3271.0,3.81919]
[1738262253792,0.61137,3271.1,3271.0,3.2078]
[1738262254893,0.61137,3271.1,3271.0,2.12429355]
[1738262255191,0.61141,3271.0,3270.8,3.21902041]
[1738262255387,0.61141,3271.0,3270.9,0.61141]
[1738262255589,0.4828,3271.3,3270.8,2.60760041]
[1738262255792,0.61136,3271.2,3271.1,0.61137]
[1738262256090,0.5098,3271.6,3271.1,2.60760041]
[1738262256289,0.4828,3271.8,3271.4,2.60760041]
[1738262256495,1.09406,3271.8,3271.7,2.60760041]
[1738262256689,0.61129,3271.6,3271.4,2.60760041]
[1738262256893,0.6113,3271.5,3271.4,3.21892041]
[1738262257096,0.4828,3271.8,3271.4,3.21892041]
[1738262257398,0.4828,3271.8,3271.5,0.6113]
[1738262257399,0.61129,3271.6,3271.5,0.6113]
[1738262257897,0.61127,3271.7,3271.6,0.61127]
[1738262258299,3.2078,3271.9,3271.8,0.61124]
[1738262258596,0.61125,3271.8,3271.7,0.61126]
[1738262258790,3.81903,3271.9,3271.7,0.61126]
[1738262258994,0.61124,3271.8,3271.7,0.61126]
[1738262259694,3.81903,3271.9,3271.8,0.61124]
[1738262260399,3.81903,3271.9,3271.7,0.61126]
[1738262260595,0.61123,3271.9,3271.7,0.61126]
[1738262261192,0.61123,3271.9,3271.5,0.5337]
[1738262261396,0.61123,3271.9,3271.5,3.7415]
[1738262261700,0.61119,3272.1,3271.9,0.61121]
[1738262262388,3.2078,3272.3,3271.8,0.61124]
[1738262262594,0.61124,3271.9,3271.7,3.22343643]
[1738262262796,0.61124,3271.9,3271.7,2.61218643]
[1738262263095,0.61122,3272.0,3271.8,0.61124]
[1738262263996,0.61122,3272.0,3271.9,0.61123]
[1738262264396,0.6112,3272.1,3271.9,0.61123]
[1738262264601,0.61121,3272.0,3271.9,0.61123]
[1738262264998,0.6112,3272.1,3271.9,0.61123]
[1738262265990,0.61124,3271.9,3271.7,3.22343643]
[1738262266196,0.61121,3272.0,3271.8,0.61123]
[1738262266396,0.61121,3272.0,3271.7,2.61218643]
[1738262266397,0.61121,3272.0,3271.9,0.61123]
[1738262266590,0.5003,3272.4,3271.9,0.61123]
[1738262266804,0.6112,3272.1,3271.9,0.61123]
[1738262266995,0.5003,3272.4,3271.7,2.61218643]
[1738262267302,0.61124,3271.8,3271.7,0.00458602]
[1738262272606,0.4908,3272.0,3271.7,0.00458602]
[1738262272804,0.61124,3271.9,3271.7,0.61583602]
[1738262273000,0.4908,3272.0,3271.7,0.00458602]
[1738262273201,0.61126,3271.7,3271.6,0.95993855]
[1738262273406,3.7081,3272.4,3271.6,0.34865855]
[1738262273607,3.7081,3272.4,3272.0,2.60760041]
[1738262273808,4.31925,3272.4,3272.2,0.61116]
[1738262274108,3.7081,3272.4,3272.2,0.61116]
[1738262274302,4.31924,3272.4,3272.2,0.61116]
[1738262274508,3.7081,3272.4,3272.1,1.0054]
[1738262274705,3.2078,3272.4,3272.3,0.61115]
[1738262275612,3.2078,3272.4,3272.3,3.21875041]
[1738262276208,3.81893,3272.4,3272.3,2.60760041]
[1738262276411,3.2078,3272.4,3272.3,3.21875041]
[1738262276606,3.81893,3272.4,3272.3,2.60760041]
[1738262276812,3.81893,3272.4,3272.1,1.0054]
[1738262277005,0.61116,3272.3,3272.1,1.61658]
[1738262277206,3.2078,3272.4,3272.2,0.61116]
[1738262277207,3.81894,3272.4,3272.2,0.61116]
[1738262277609,0.61119,3272.1,3272.0,0.00458602]
[1738262279813,0.61119,3272.1,3272.0,0.00356433]
[1738262281210,0.61119,3272.1,3272.0,0.00247698]
[1738262282614,2.60760041,3272.2,3271.1,5.81540041]
[1738262282818,3.2078,3271.7,3271.1,5.81540041]
[1738262283016,0.61136,3271.2,3271.1,6.42676041]
[1738262283422,0.61136,3271.2,3271.1,5.81540041]
[1738262283716,0.61136,3271.2,3271.1,2.60760041]
[1738262284916,3.2078,3271.8,3271.1,2.60760041]
[1738262285113,3.2078,3272.2,3271.5,2.60760041]
[1738262285314,0.61121,3272.0,3271.8,3.21883041]
[1738262285621,3.2078,3272.2,3272.1,0.61119]
[1738262285819,3.2078,3272.2,3272.1,3.21879041]
[1738262286016,0.4856,3272.4,3272.3,0.61115]
[1738262286419,0.4856,3272.4,3272.1,2.60760041]
[1738262286620,0.4856,3272.4,3272.3,0.61115]
[1738262287718,0.4856,3272.4,3272.1,2.60760041]
[1738262287917,0.61119,3272.1,3272.0,0.6112]
[1738262288317,0.61119,3272.2,3272.1,0.61117]
[1738262290118,0.4856,3272.4,3272.3,0.61115]
[1738262290316,1.09673,3272.4,3272.3,0.61115]
[1738262290512,0.4856,3272.4,3272.3,0.61115]
[1738262290818,1.09673,3272.4,3272.3,0.61115]
[1738262291617,0.4856,3272.4,3272.3,0.61115]
[1738262291922,1.09673,3272.4,3272.3,0.61115]
[1738262292114,0.61112,3272.5,3272.4,0.61111]
[1738262292925,0.00458601,3272.6,3272.5,0.61111]
[1738262293316,0.61115,3272.3,3272.2,1.13856]
[1738262293715,0.61112,3272.5,3272.4,0.61112]
[1738262293912,0.00458601,3272.6,3272.5,0.61111]
[1738262294624,0.00458601,3272.6,3272.5,1.60221]
[1738262295632,0.00458601,3272.6,3272.5,0.31890754]
[1738262295923,0.00458601,3272.6,3272.5,0.93001754]
[1738262296722,0.00458601,3272.6,3272.5,4.13781754]
[1738262297426,0.00458601,3272.6,3272.5,3.52670754]
[1738262297628,0.00458601,3272.6,3272.5,4.13781754]
[1738262297820,0.00458601,3272.6,3272.4,2.60760041]
[1738262297821,0.61111,3272.5,3272.4,2.60760041]
[1738262298026,0.00458601,3272.6,3272.2,0.5274]
[1738262298327,0.61114,3272.4,3272.2,1.13856]
[1738262298528,0.00458601,3272.6,3272.2,0.5274]
[1738262298731,0.61114,3272.4,3272.2,0.5274]
[1738262299430,1.11944,3272.4,3272.2,0.5274]
[1738262299927,0.61115,3272.3,3272.1,2.60760041]
[1738262300126,0.5083,3272.4,3272.1,2.60760041]
[1738262300329,0.61117,3272.2,3272.1,2.60760041]
[1738262300526,0.61116,3272.3,3272.1,2.60760041]
[1738262300727,0.61116,3272.3,3272.1,3.21878041]
[1738262301123,1.11944,3272.4,3272.1,3.21878041]
[1738262301428,0.5083,3272.4,3272.1,3.21878041]
[1738262301732,1.11944,3272.4,3272.2,0.61116]
[1738262301921,0.5083,3272.4,3272.3,0.61115]
[1738262302128,0.61567601,3272.6,3272.2,0.61117]
[1738262302429,0.00458601,3272.6,3272.5,3.21871041]
[1738262302827,0.00458601,3272.6,3272.5,2.50253071]
[1738262303222,0.61567601,3272.6,3272.5,2.50253071]
[1738262303431,0.00458601,3272.6,3272.5,2.50253071]
[1738262304730,0.61567601,3272.6,3272.5,2.50253071]
[1738262305632,0.61567601,3272.6,3272.5,1.89142071]
[1738262305928,0.00458601,3272.6,3272.2,2.60760041]
[1738262306138,0.61113,3272.4,3272.3,0.61114]
[1738262306529,0.00458601,3272.6,3272.2,2.60760041]